[Event "*** Titled Tuesday Blitz"]
[Site "Chess.com"]
[Date "2020.05.19"]
[Round "6"]
[White "ASVZ"]
[Black "Pittiplatsh"]
[Result "0-1"]
[WhiteElo "2375"]
[BlackElo "2551"]
[TimeControl "180+1"]
[EndTime "13:09:35 PDT"]
[Termination "Pittiplatsh won by resignation"]

1. e4 {[%clk 0:03:00.9]} 1... c5 {[%clk 0:02:59.3]} 2. c3 {[%clk 0:03:00.9]}
2... Nf6 {[%clk 0:02:55.7]} 3. e5 {[%clk 0:03:00.3]} 3... Nd5 {[%clk 0:02:55.8]}
4. d4 {[%clk 0:03:01.2]} 4... cxd4 {[%clk 0:02:55.7]} 5. Qxd4 {[%clk 0:03:02.1]}
5... e6 {[%clk 0:02:54.9]} 6. Nf3 {[%clk 0:03:01.8]} 6... Nc6 {[%clk 0:02:55.1]}
7. Qe4 {[%clk 0:03:02.2]} 7... f5 {[%clk 0:02:54.2]} 8. Qe2 {[%clk 0:03:02.5]}
8... Qc7 {[%clk 0:02:45.8]} 9. g3 {[%clk 0:03:00.4]} 9... b5 {[%clk 0:02:45.3]}
10. Bg2 {[%clk 0:03:00]} 10... a5 {[%clk 0:02:43.1]} 11. Nh4 {[%clk 0:03:00.4]}
11... Qxe5 {[%clk 0:02:32.2]} 12. Qxe5 {[%clk 0:02:59.7]} 12... Nxe5 {[%clk
0:02:32.2]} 13. Bxd5 {[%clk 0:02:54.9]} 13... exd5 {[%clk 0:02:30.8]} 14. Nxf5
{[%clk 0:02:49.4]} 14... b4 {[%clk 0:01:54.5]} 15. O-O {[%clk 0:02:46.9]} 15...
Kf7 {[%clk 0:01:50.3]} 16. Nd4 {[%clk 0:02:44.2]} 16... Ba6 {[%clk 0:01:46.7]}
17. Rd1 {[%clk 0:02:39.6]} 17... Bc5 {[%clk 0:01:45.3]} 18. Bf4 {[%clk 0:02:37]}
18... Nd3 {[%clk 0:01:39.7]} 19. Rd2 {[%clk 0:02:06.2]} 19... Nxf4 {[%clk
0:01:34.4]} 20. gxf4 {[%clk 0:02:06]} 20... Rhe8 {[%clk 0:01:33.3]} 21. Rd1
{[%clk 0:02:01]} 21... Re4 {[%clk 0:01:24.6]} 22. Nd2 {[%clk 0:01:56.7]} 22...
Rxf4 {[%clk 0:01:23]} 23. N2f3 {[%clk 0:01:56.8]} 23... Re8 {[%clk 0:01:20.2]}
24. h3 {[%clk 0:01:49.3]} 24... h6 {[%clk 0:01:12.7]} 25. Re1 {[%clk 0:01:45.4]}
25... Rfe4 {[%clk 0:01:12]} 26. Kg2 {[%clk 0:01:33]} 26... Rxe1 {[%clk
0:01:07.9]} 27. Rxe1 {[%clk 0:01:27.2]} 27... Rxe1 {[%clk 0:01:07]} 28. Nxe1
{[%clk 0:01:28.1]} 28... bxc3 {[%clk 0:01:06]} 29. bxc3 {[%clk 0:01:28]} 29...
Bc4 {[%clk 0:01:00.2]} 30. a4 {[%clk 0:01:14.2]} 30... Bxd4 {[%clk 0:00:56.4]}
31. cxd4 {[%clk 0:01:15.1]} 31... Bb3 {[%clk 0:00:56.5]} 32. Kf3 {[%clk
0:01:03]} 32... Bxa4 {[%clk 0:00:55.8]} 33. Ke3 {[%clk 0:01:03.5]} 33... Bb5
{[%clk 0:00:42.6]} 34. Nc2 {[%clk 0:00:59.5]} 34... d6 {[%clk 0:00:41.7]} 35. h4
{[%clk 0:00:59.2]} 35... Kg6 {[%clk 0:00:41.3]} 36. Kf4 {[%clk 0:00:57.3]} 36...
Bd3 {[%clk 0:00:37.2]} 37. Na3 {[%clk 0:00:42.5]} 37... Kh5 {[%clk 0:00:36.7]}
38. Kg3 {[%clk 0:00:42]} 38... g5 {[%clk 0:00:37]} 39. hxg5 {[%clk 0:00:41.9]}
39... Kxg5 {[%clk 0:00:37.4]} 40. f4+ {[%clk 0:00:34.6]} 40... Kf5 {[%clk
0:00:36.9]} 41. Kf3 {[%clk 0:00:35.5]} 41... h5 {[%clk 0:00:37]} 42. Ke3 {[%clk
0:00:36.1]} 42... Bc4 {[%clk 0:00:29.5]} 43. Nb1 {[%clk 0:00:31.6]} 43... h4
{[%clk 0:00:29.1]} 44. Kf3 {[%clk 0:00:23]} 44... a4 {[%clk 0:00:26.9]} 45. Na3
{[%clk 0:00:11.6]} 45... Bd3 {[%clk 0:00:26.5]} 46. Ke3 {[%clk 0:00:11.8]} 46...
h3 {[%clk 0:00:22]} 47. Kxd3 {[%clk 0:00:11.7]} 47... h2 {[%clk 0:00:22.4]} 48.
Nc2 {[%clk 0:00:12.3]} 48... h1=Q {[%clk 0:00:21.4]} 49. Ne3+ {[%clk 0:00:13.2]}
49... Kxf4 {[%clk 0:00:21.1]} 0-1

[Event "*** Titled Tuesday Blitz"]
[Site "Chess.com"]
[Date "2020.05.19"]
[Round "6"]
[White "Kostya26"]
[Black "ramses135"]
[Result "0-1"]
[WhiteElo "2355"]
[BlackElo "2504"]
[TimeControl "180+1"]
[EndTime "13:09:35 PDT"]
[Termination "ramses135 won by checkmate"]

1. d4 {[%clk 0:03:00.9]} 1... g6 {[%clk 0:02:58.7]} 2. Nf3 {[%clk 0:03:01.8]}
2... Bg7 {[%clk 0:02:59.1]} 3. Bf4 {[%clk 0:03:02.3]} 3... d6 {[%clk 0:02:59.5]}
4. e3 {[%clk 0:03:02.8]} 4... Nd7 {[%clk 0:02:59.7]} 5. h3 {[%clk 0:03:03.3]}
5... e5 {[%clk 0:03:00]} 6. dxe5 {[%clk 0:03:02.6]} 6... dxe5 {[%clk 0:03:00.9]}
7. Bh2 {[%clk 0:03:02.7]} 7... Ne7 {[%clk 0:03:01.4]} 8. Nbd2 {[%clk 0:03:02.4]}
8... O-O {[%clk 0:03:01.9]} 9. c3 {[%clk 0:03:01.6]} 9... a6 {[%clk 0:02:47.1]}
10. Qc2 {[%clk 0:03:01]} 10... b5 {[%clk 0:02:47.3]} 11. Be2 {[%clk 0:02:59]}
11... Bb7 {[%clk 0:02:47.4]} 12. O-O {[%clk 0:02:57.5]} 12... f6 {[%clk
0:02:40.5]} 13. Rad1 {[%clk 0:02:57.1]} 13... Qe8 {[%clk 0:02:40.7]} 14. c4
{[%clk 0:02:53.9]} 14... b4 {[%clk 0:02:10.6]} 15. c5 {[%clk 0:02:48]} 15... Bd5
{[%clk 0:02:10.6]} 16. Bc4 {[%clk 0:02:46.6]} 16... c6 {[%clk 0:02:10.6]} 17.
Bxd5+ {[%clk 0:02:44.4]} 17... Nxd5 {[%clk 0:02:10.6]} 18. Qc4 {[%clk 0:02:43]}
18... Qf7 {[%clk 0:02:08.2]} 19. Ne4 {[%clk 0:02:34.4]} 19... a5 {[%clk
0:01:59]} 20. Nd6 {[%clk 0:02:19.4]} 20... Qe6 {[%clk 0:01:55.2]} 21. Nd2 {[%clk
0:01:25]} 21... Rfd8 {[%clk 0:01:45]} 22. f4 {[%clk 0:01:02.6]} 22... Nxc5
{[%clk 0:01:18.9]} 23. Qxc5 {[%clk 0:01:01.9]} 23... Qxd6 {[%clk 0:01:12.2]} 24.
Qxd6 {[%clk 0:00:49.1]} 24... Rxd6 {[%clk 0:01:13.1]} 25. Nc4 {[%clk 0:00:49.4]}
25... Re6 {[%clk 0:01:08.6]} 26. e4 {[%clk 0:00:46.9]} 26... Nxf4 {[%clk
0:01:04.9]} 27. Bxf4 {[%clk 0:00:47]} 27... exf4 {[%clk 0:01:05.8]} 28. Rxf4
{[%clk 0:00:47.3]} 28... Rae8 {[%clk 0:01:02.9]} 29. Nxa5 {[%clk 0:00:42.6]}
29... Bh6 {[%clk 0:01:00.1]} 30. Rf3 {[%clk 0:00:39.4]} 30... Ra8 {[%clk
0:00:47.3]} 31. Nb7 {[%clk 0:00:29.2]} 31... Rxa2 {[%clk 0:00:47.6]} 32. Nc5
{[%clk 0:00:29.2]} 32... Re7 {[%clk 0:00:42.4]} 33. Rxf6 {[%clk 0:00:21.5]}
33... Be3+ {[%clk 0:00:41.2]} 34. Kh1 {[%clk 0:00:20.6]} 34... Bxc5 {[%clk
0:00:42.1]} 35. Rxc6 {[%clk 0:00:18.3]} 35... Be3 {[%clk 0:00:35.4]} 36. Rc2
{[%clk 0:00:16.1]} 36... b3 {[%clk 0:00:25.1]} 37. Re2 {[%clk 0:00:14.8]} 37...
Bf4 {[%clk 0:00:25.4]} 38. g3 {[%clk 0:00:11.6]} 38... Bxg3 {[%clk 0:00:20.7]}
39. Kg2 {[%clk 0:00:11.9]} 39... Be5 {[%clk 0:00:20.3]} 40. Rd3 {[%clk
0:00:12.8]} 40... Rb7 {[%clk 0:00:16.5]} 41. Rdd2 {[%clk 0:00:09.5]} 41... Kg7
{[%clk 0:00:14.5]} 42. Kf3 {[%clk 0:00:09.9]} 42... Rc7 {[%clk 0:00:13.3]} 43.
Kg4 {[%clk 0:00:09.9]} 43... Rc2 {[%clk 0:00:12.7]} 44. Rd7+ {[%clk 0:00:05.4]}
44... Kh6 {[%clk 0:00:12]} 45. Re1 {[%clk 0:00:04.4]} 45... Raxb2 {[%clk
0:00:11]} 46. Rf1 {[%clk 0:00:04.5]} 46... Rg2+ {[%clk 0:00:10.7]} 47. Kh4
{[%clk 0:00:04.3]} 47... g5# {[%clk 0:00:09.6]} 0-1

[Event "*** Titled Tuesday Blitz"]
[Site "Chess.com"]
[Date "2020.05.19"]
[Round "6"]
[White "CzechmVIII"]
[Black "sergeikim"]
[Result "1/2-1/2"]
[WhiteElo "2201"]
[BlackElo "2374"]
[TimeControl "180+1"]
[EndTime "13:09:36 PDT"]
[Termination "Game drawn by repetition"]

1. e4 {[%clk 0:03:00.9]} 1... e5 {[%clk 0:02:59.4]} 2. Nf3 {[%clk 0:03:00.9]}
2... Nc6 {[%clk 0:02:59.4]} 3. Bb5 {[%clk 0:03:00.8]} 3... a6 {[%clk 0:02:59.5]}
4. Ba4 {[%clk 0:03:00.3]} 4... Nf6 {[%clk 0:02:59.3]} 5. O-O {[%clk 0:03:00.3]}
5... b5 {[%clk 0:02:59.4]} 6. Bb3 {[%clk 0:02:59.1]} 6... Bc5 {[%clk 0:02:59.9]}
7. Nc3 {[%clk 0:02:55.9]} 7... d6 {[%clk 0:02:59.3]} 8. Nd5 {[%clk 0:02:53.3]}
8... O-O {[%clk 0:02:39.4]} 9. d4 {[%clk 0:02:40.6]} 9... exd4 {[%clk
0:02:18.6]} 10. Bg5 {[%clk 0:02:39.8]} 10... Bg4 {[%clk 0:02:14.6]} 11. Nxf6+
{[%clk 0:02:16]} 11... gxf6 {[%clk 0:02:14]} 12. Bh6 {[%clk 0:02:14.4]} 12...
Re8 {[%clk 0:02:13.9]} 13. Bd5 {[%clk 0:02:14.4]} 13... Qd7 {[%clk 0:02:11]} 14.
h3 {[%clk 0:01:42]} 14... Bh5 {[%clk 0:02:08.5]} 15. c3 {[%clk 0:01:28]} 15...
dxc3 {[%clk 0:02:02.1]} 16. bxc3 {[%clk 0:01:23.6]} 16... Rad8 {[%clk
0:01:48.1]} 17. Qc1 {[%clk 0:01:01.5]} 17... Ne5 {[%clk 0:01:39.4]} 18. Nxe5
{[%clk 0:00:56.8]} 18... dxe5 {[%clk 0:01:20.2]} 19. a4 {[%clk 0:00:47.3]} 19...
c6 {[%clk 0:01:18.8]} 20. Bb3 {[%clk 0:00:45.5]} 20... Kh8 {[%clk 0:01:13.4]}
21. axb5 {[%clk 0:00:42.9]} 21... axb5 {[%clk 0:01:12.9]} 22. Be3 {[%clk
0:00:35.1]} 22... Rg8 {[%clk 0:00:58.3]} 23. Kh2 {[%clk 0:00:27.5]} 23... Qe7
{[%clk 0:00:49.4]} 24. Bxc5 {[%clk 0:00:22.7]} 24... Qxc5 {[%clk 0:00:49.2]} 25.
Qh6 {[%clk 0:00:22.6]} 25... Bg6 {[%clk 0:00:45.5]} 26. Bxf7 {[%clk 0:00:21]}
26... Rg7 {[%clk 0:00:40]} 27. Bxg6 {[%clk 0:00:18.3]} 27... Rxg6 {[%clk
0:00:40]} 28. Qh4 {[%clk 0:00:18.9]} 28... Rdg8 {[%clk 0:00:36]} 29. g3 {[%clk
0:00:19.1]} 29... Qxc3 {[%clk 0:00:35.5]} 30. Rad1 {[%clk 0:00:18.1]} 30... Qf3
{[%clk 0:00:33.8]} 31. Rd7 {[%clk 0:00:15.8]} 31... R6g7 {[%clk 0:00:33.9]} 32.
Rxg7 {[%clk 0:00:14.9]} 32... Rxg7 {[%clk 0:00:33.8]} 33. g4 {[%clk 0:00:14.7]}
33... b4 {[%clk 0:00:30.9]} 34. Ra1 {[%clk 0:00:14.4]} 34... Qf4+ {[%clk
0:00:27.6]} 35. Kg1 {[%clk 0:00:12.6]} 35... Qg5 {[%clk 0:00:23.8]} 36. Ra8+
{[%clk 0:00:10.6]} 36... Rg8 {[%clk 0:00:23.8]} 37. Rxg8+ {[%clk 0:00:09.6]}
37... Kxg8 {[%clk 0:00:23.9]} 38. Qg3 {[%clk 0:00:09.9]} 38... Qf4 {[%clk
0:00:21.5]} 39. Qb3+ {[%clk 0:00:09.7]} 39... Kg7 {[%clk 0:00:20.7]} 40. Qxb4
{[%clk 0:00:10.1]} 40... Qc1+ {[%clk 0:00:18.3]} 41. Kg2 {[%clk 0:00:09.9]}
41... c5 {[%clk 0:00:18.1]} 42. Qb7+ {[%clk 0:00:09.7]} 42... Kg6 {[%clk
0:00:18.1]} 43. Qd7 {[%clk 0:00:09.3]} 43... Qf4 {[%clk 0:00:17.4]} 44. Qd5
{[%clk 0:00:07.8]} 44... Kg7 {[%clk 0:00:12.1]} 45. Qxc5 {[%clk 0:00:07.7]}
45... Qxe4+ {[%clk 0:00:11.6]} 46. Kh2 {[%clk 0:00:06.8]} 46... Qf4+ {[%clk
0:00:11.6]} 47. Kg2 {[%clk 0:00:07.2]} 47... Qe4+ {[%clk 0:00:11.7]} 48. Kh2
{[%clk 0:00:07.6]} 48... Qf4+ {[%clk 0:00:11.2]} 49. Kg2 {[%clk 0:00:07.9]}
49... Qe4+ {[%clk 0:00:11.1]} 1/2-1/2

[Event "*** Titled Tuesday Blitz"]
[Site "Chess.com"]
[Date "2020.05.19"]
[Round "6"]
[White "Klavdia_Nik"]
[Black "Xeslu"]
[Result "0-1"]
[WhiteElo "2022"]
[BlackElo "2354"]
[TimeControl "180+1"]
[EndTime "13:09:37 PDT"]
[Termination "Xeslu won on time"]

1. Nf3 {[%clk 0:03:00.9]} 1... d5 {[%clk 0:02:54.6]} 2. c4 {[%clk 0:03:01.1]}
2... c6 {[%clk 0:02:50.6]} 3. b3 {[%clk 0:03:01.4]} 3... Nf6 {[%clk 0:02:51.1]}
4. Bb2 {[%clk 0:02:59]} 4... e6 {[%clk 0:02:49.9]} 5. g3 {[%clk 0:02:59.4]} 5...
Bd6 {[%clk 0:02:47.3]} 6. Bg2 {[%clk 0:02:59.8]} 6... O-O {[%clk 0:02:46.6]} 7.
O-O {[%clk 0:03:00.4]} 7... Nbd7 {[%clk 0:02:46.3]} 8. d4 {[%clk 0:03:00.4]}
8... Qe7 {[%clk 0:02:37.2]} 9. Nc3 {[%clk 0:02:57.5]} 9... Ba3 {[%clk
0:02:35.5]} 10. Bxa3 {[%clk 0:02:51.7]} 10... Qxa3 {[%clk 0:02:34.7]} 11. Qc2
{[%clk 0:02:52.4]} 11... h6 {[%clk 0:02:25.2]} 12. e4 {[%clk 0:02:51.4]} 12...
dxe4 {[%clk 0:02:23.8]} 13. Nxe4 {[%clk 0:02:51.5]} 13... Nxe4 {[%clk
0:02:24.3]} 14. Qxe4 {[%clk 0:02:51.3]} 14... Nf6 {[%clk 0:02:25]} 15. Qe2
{[%clk 0:02:50.7]} 15... c5 {[%clk 0:02:24.9]} 16. dxc5 {[%clk 0:02:37.9]} 16...
Qxc5 {[%clk 0:02:23.7]} 17. Ne5 {[%clk 0:02:31.4]} 17... Qc7 {[%clk 0:02:21.7]}
18. Rfd1 {[%clk 0:02:27.7]} 18... Bd7 {[%clk 0:02:21.4]} 19. Nxd7 {[%clk
0:02:25.3]} 19... Nxd7 {[%clk 0:02:19.7]} 20. Qd2 {[%clk 0:02:07.3]} 20... Nf6
{[%clk 0:02:12.3]} 21. Qd6 {[%clk 0:02:01.8]} 21... Rac8 {[%clk 0:02:07.3]} 22.
Qxc7 {[%clk 0:01:59.1]} 22... Rxc7 {[%clk 0:02:05.6]} 23. Rd2 {[%clk 0:01:52.9]}
23... b6 {[%clk 0:01:52.1]} 24. Rad1 {[%clk 0:01:50.7]} 24... g5 {[%clk
0:01:50.6]} 25. h3 {[%clk 0:01:50.8]} 25... Kg7 {[%clk 0:01:50.1]} 26. g4 {[%clk
0:01:45.2]} 26... Rc5 {[%clk 0:01:45.3]} 27. Kh2 {[%clk 0:01:35.3]} 27... b5
{[%clk 0:01:45.1]} 28. cxb5 {[%clk 0:01:32]} 28... Rxb5 {[%clk 0:01:45.3]} 29.
Rd4 {[%clk 0:01:16.5]} 29... Rc8 {[%clk 0:01:36.9]} 30. R1d2 {[%clk 0:01:15.2]}
30... h5 {[%clk 0:01:26]} 31. Bf1 {[%clk 0:01:08.2]} 31... Rbc5 {[%clk
0:01:19.7]} 32. Bc4 {[%clk 0:01:01.1]} 32... hxg4 {[%clk 0:01:12.6]} 33. hxg4
{[%clk 0:01:00.4]} 33... e5 {[%clk 0:01:08.6]} 34. Rd8 {[%clk 0:00:47.4]} 34...
Nxg4+ {[%clk 0:01:07.3]} 35. Kg3 {[%clk 0:00:45.7]} 35... Nf6 {[%clk 0:01:06.5]}
36. f3 {[%clk 0:00:35.4]} 36... g4 {[%clk 0:01:01.1]} 37. Rxc8 {[%clk
0:00:33.9]} 37... Rxc8 {[%clk 0:00:59.6]} 38. Rg2 {[%clk 0:00:17]} 38... gxf3
{[%clk 0:00:53.8]} 39. Kxf3+ {[%clk 0:00:16.5]} 39... Kf8 {[%clk 0:00:54]} 40.
Rg5 {[%clk 0:00:15.6]} 40... e4+ {[%clk 0:00:40.2]} 41. Ke3 {[%clk 0:00:14.9]}
41... Ke7 {[%clk 0:00:39.2]} 42. Re5+ {[%clk 0:00:13.4]} 42... Kf8 {[%clk
0:00:28.8]} 43. Ra5 {[%clk 0:00:06]} 43... Rc7 {[%clk 0:00:27.8]} 44. Rf5 {[%clk
0:00:04]} 44... Kg7 {[%clk 0:00:26.8]} 45. Kf4 {[%clk 0:00:01.9]} 45... Kg6
{[%clk 0:00:19.8]} 46. Rg5+ {[%clk 0:00:01.3]} 46... Kh6 {[%clk 0:00:19.8]} 0-1

[Event "*** Titled Tuesday Blitz"]
[Site "Chess.com"]
[Date "2020.05.19"]
[Round "6"]
[White "kasparicy"]
[Black "Bubi6"]
[Result "0-1"]
[WhiteElo "2408"]
[BlackElo "2600"]
[TimeControl "180+1"]
[EndTime "13:09:38 PDT"]
[Termination "Bubi6 won by resignation"]

1. e4 {[%clk 0:03:00.9]} 1... c6 {[%clk 0:02:59.1]} 2. d4 {[%clk 0:03:00.2]}
2... d5 {[%clk 0:03:00]} 3. f4 {[%clk 0:03:00.2]} 3... dxe4 {[%clk 0:02:58.3]}
4. Nc3 {[%clk 0:02:59.8]} 4... Nf6 {[%clk 0:02:50.1]} 5. g3 {[%clk 0:02:52.7]}
5... Bf5 {[%clk 0:02:39.5]} 6. Bg2 {[%clk 0:02:52.4]} 6... e6 {[%clk 0:02:39.6]}
7. Qe2 {[%clk 0:02:49.3]} 7... Bb4 {[%clk 0:02:37.7]} 8. Be3 {[%clk 0:02:48.1]}
8... Nd5 {[%clk 0:02:33]} 9. Qd2 {[%clk 0:02:41.9]} 9... Qa5 {[%clk 0:02:27.9]}
10. Nge2 {[%clk 0:02:40.8]} 10... O-O {[%clk 0:02:15]} 11. O-O {[%clk
0:02:37.7]} 11... c5 {[%clk 0:02:15.2]} 12. a3 {[%clk 0:02:37.2]} 12... Bxc3
{[%clk 0:02:12.9]} 13. Nxc3 {[%clk 0:02:33.3]} 13... Nxe3 {[%clk 0:02:04.2]} 14.
Qxe3 {[%clk 0:02:34.2]} 14... cxd4 {[%clk 0:02:04.5]} 15. Qxd4 {[%clk
0:02:34.8]} 15... Nc6 {[%clk 0:02:04.5]} 16. Qe3 {[%clk 0:02:32.8]} 16... Rfd8
{[%clk 0:01:53.5]} 17. Rad1 {[%clk 0:02:30.3]} 17... h6 {[%clk 0:01:44.3]} 18.
Nxe4 {[%clk 0:02:25.9]} 18... Rxd1 {[%clk 0:01:32.9]} 19. Rxd1 {[%clk 0:02:25]}
19... Rd8 {[%clk 0:01:33]} 20. Nd6 {[%clk 0:02:11.8]} 20... Bxc2 {[%clk
0:01:08.5]} 21. Rd2 {[%clk 0:01:57.4]} 21... Bg6 {[%clk 0:01:05.7]} 22. h4
{[%clk 0:01:13.5]} 22... Rd7 {[%clk 0:01:01.3]} 23. Nc4 {[%clk 0:00:49.4]} 23...
Qd8 {[%clk 0:00:55.8]} 24. Rxd7 {[%clk 0:00:49.4]} 24... Qxd7 {[%clk 0:00:56.7]}
25. Kh2 {[%clk 0:00:38.5]} 25... Qd3 {[%clk 0:00:42.3]} 26. Qxd3 {[%clk
0:00:34.7]} 26... Bxd3 {[%clk 0:00:43.2]} 27. Nd6 {[%clk 0:00:35.3]} 27... Ba6
{[%clk 0:00:39.7]} 28. b4 {[%clk 0:00:33.1]} 28... Nd4 {[%clk 0:00:33.6]} 29. a4
{[%clk 0:00:24.4]} 29... Bd3 {[%clk 0:00:10.7]} 30. Bxb7 {[%clk 0:00:23.6]}
30... Kf8 {[%clk 0:00:10.1]} 31. b5 {[%clk 0:00:21.6]} 31... Nb3 {[%clk
0:00:08.7]} 32. Nc8 {[%clk 0:00:18.9]} 32... Nc5 {[%clk 0:00:09]} 33. Bc6 {[%clk
0:00:17.2]} 33... Nxa4 {[%clk 0:00:08.1]} 34. Nxa7 {[%clk 0:00:16.3]} 34... Nb6
{[%clk 0:00:08.6]} 35. Kg2 {[%clk 0:00:12.7]} 35... Ke7 {[%clk 0:00:08.9]} 36.
Kf3 {[%clk 0:00:10.1]} 36... Kd6 {[%clk 0:00:09]} 37. Ke3 {[%clk 0:00:10.4]}
37... Bc4 {[%clk 0:00:09.5]} 38. Kd4 {[%clk 0:00:10.2]} 38... Bd5 {[%clk
0:00:09.3]} 39. Bxd5 {[%clk 0:00:09.1]} 39... Nxd5 {[%clk 0:00:09.5]} 40. Nc6
{[%clk 0:00:09.7]} 40... Nc7 {[%clk 0:00:09]} 41. Ne5 {[%clk 0:00:08.5]} 41...
Nxb5+ {[%clk 0:00:08]} 42. Kc4 {[%clk 0:00:08.7]} 42... f6 {[%clk 0:00:08]} 43.
Nf7+ {[%clk 0:00:06.7]} 43... Ke7 {[%clk 0:00:07.5]} 44. Nxh6 {[%clk 0:00:06.6]}
44... Nd6+ {[%clk 0:00:07.1]} 45. Kc5 {[%clk 0:00:04.6]} 45... gxh6 {[%clk
0:00:08]} 0-1

[Event "*** Titled Tuesday Blitz"]
[Site "Chess.com"]
[Date "2020.05.19"]
[Round "6"]
[White "mfwagnerpeixoto"]
[Black "luizwas"]
[Result "1-0"]
[WhiteElo "2225"]
[BlackElo "1818"]
[TimeControl "180+1"]
[EndTime "13:09:38 PDT"]
[Termination "mfwagnerpeixoto won on time"]

1. d4 {[%clk 0:03:00.9]} 1... e6 {[%clk 0:02:58.1]} 2. Nf3 {[%clk 0:03:01.1]}
2... f5 {[%clk 0:02:55.9]} 3. d5 {[%clk 0:02:59.3]} 3... exd5 {[%clk 0:02:22]}
4. Qxd5 {[%clk 0:02:57.5]} 4... Nf6 {[%clk 0:02:21.6]} 5. Qxf5 {[%clk
0:02:55.9]} 5... d5 {[%clk 0:02:21.3]} 6. Qd3 {[%clk 0:02:40.3]} 6... Bd6 {[%clk
0:02:11.6]} 7. Bg5 {[%clk 0:02:31.2]} 7... c6 {[%clk 0:02:11.2]} 8. Nc3 {[%clk
0:02:26.5]} 8... O-O {[%clk 0:02:09.9]} 9. e4 {[%clk 0:02:10.2]} 9... dxe4
{[%clk 0:02:00.8]} 10. Nxe4 {[%clk 0:01:40.7]} 10... Bb4+ {[%clk 0:02:00]} 11.
Bd2 {[%clk 0:01:21.8]} 11... Bxd2+ {[%clk 0:01:51.6]} 12. Nfxd2 {[%clk
0:01:19.9]} 12... Nxe4 {[%clk 0:01:49.3]} 13. Nxe4 {[%clk 0:01:15.3]} 13... Qe7
{[%clk 0:01:19.9]} 14. O-O-O {[%clk 0:01:01.7]} 14... Bf5 {[%clk 0:01:19.7]} 15.
f3 {[%clk 0:01:01.5]} 15... Na6 {[%clk 0:01:15.4]} 16. Qd6 {[%clk 0:00:51.6]}
16... Qf7 {[%clk 0:00:43.6]} 17. b3 {[%clk 0:00:46.5]} 17... Bxe4 {[%clk
0:00:40.7]} 18. fxe4 {[%clk 0:00:47.4]} 18... Kh8 {[%clk 0:00:39.1]} 19. Bc4
{[%clk 0:00:40.4]} 19... Qf2 {[%clk 0:00:35.6]} 20. Bxa6 {[%clk 0:00:22.4]}
20... bxa6 {[%clk 0:00:33.3]} 21. Rhf1 {[%clk 0:00:22]} 21... Qe3+ {[%clk
0:00:32]} 22. Kb2 {[%clk 0:00:20.5]} 22... Rxf1 {[%clk 0:00:22.6]} 23. Rxf1
{[%clk 0:00:18]} 23... h6 {[%clk 0:00:23.1]} 24. Qd3 {[%clk 0:00:15.1]} 24...
Qc5 {[%clk 0:00:19.1]} 25. Rf7 {[%clk 0:00:12]} 25... Qe5+ {[%clk 0:00:18.9]}
26. Qc3 {[%clk 0:00:10.9]} 26... Qxc3+ {[%clk 0:00:16.6]} 27. Kxc3 {[%clk
0:00:11.8]} 27... Re8 {[%clk 0:00:13.4]} 28. Rxa7 {[%clk 0:00:11.2]} 28... Rxe4
{[%clk 0:00:13.1]} 29. Rxa6 {[%clk 0:00:11.2]} 29... Re2 {[%clk 0:00:12]} 30.
Rxc6 {[%clk 0:00:09.7]} 30... Rxg2 {[%clk 0:00:12.7]} 31. a4 {[%clk 0:00:09.7]}
31... Rxh2 {[%clk 0:00:13.1]} 32. a5 {[%clk 0:00:10]} 32... Rh1 {[%clk
0:00:13.8]} 33. Kb2 {[%clk 0:00:06.3]} 33... Rh5 {[%clk 0:00:14.1]} 34. a6
{[%clk 0:00:05.9]} 34... Ra5 {[%clk 0:00:14.1]} 35. b4 {[%clk 0:00:06]} 35...
Ra4 {[%clk 0:00:11.6]} 36. c3 {[%clk 0:00:06]} 36... h5 {[%clk 0:00:09.8]} 37.
Kb3 {[%clk 0:00:06.1]} 37... Ra1 {[%clk 0:00:09]} 38. b5 {[%clk 0:00:06.3]}
38... h4 {[%clk 0:00:08.7]} 39. Rc4 {[%clk 0:00:04.4]} 39... g5 {[%clk
0:00:06.7]} 40. Rg4 {[%clk 0:00:03.4]} 40... Rb1+ {[%clk 0:00:05.7]} 41. Kc4
{[%clk 0:00:02.6]} 41... h3 {[%clk 0:00:04.5]} 42. Rxg5 {[%clk 0:00:02.5]} 1-0

[Event "*** Titled Tuesday Blitz"]
[Site "Chess.com"]
[Date "2020.05.19"]
[Round "6"]
[White "Sanan_Sjugirov"]
[Black "nihalsarin"]
[Result "1/2-1/2"]
[WhiteElo "2838"]
[BlackElo "3014"]
[TimeControl "180+1"]
[EndTime "13:09:40 PDT"]
[Termination "Game drawn by repetition"]

1. d4 {[%clk 0:03:00.9]} 1... Nf6 {[%clk 0:02:30.1]} 2. c4 {[%clk 0:03:00.1]}
2... e6 {[%clk 0:02:14.1]} 3. Nf3 {[%clk 0:02:58.8]} 3... d5 {[%clk 0:02:13.6]}
4. g3 {[%clk 0:02:56.9]} 4... Bb4+ {[%clk 0:02:14.1]} 5. Bd2 {[%clk 0:02:56.3]}
5... Be7 {[%clk 0:02:14.7]} 6. Bg2 {[%clk 0:02:56.1]} 6... O-O {[%clk
0:02:15.1]} 7. O-O {[%clk 0:02:56.1]} 7... Nbd7 {[%clk 0:02:15.8]} 8. Qc2 {[%clk
0:02:54.7]} 8... Ne4 {[%clk 0:02:16]} 9. Bc3 {[%clk 0:02:11.7]} 9... c6 {[%clk
0:02:07.1]} 10. b3 {[%clk 0:02:03.9]} 10... b6 {[%clk 0:01:39.2]} 11. Bb2 {[%clk
0:02:02.3]} 11... Bb7 {[%clk 0:01:39.4]} 12. Nc3 {[%clk 0:02:01]} 12... Nxc3
{[%clk 0:01:33.1]} 13. Bxc3 {[%clk 0:01:59.9]} 13... Rc8 {[%clk 0:01:32.8]} 14.
e4 {[%clk 0:01:13.3]} 14... c5 {[%clk 0:01:15.7]} 15. exd5 {[%clk 0:01:12.9]}
15... exd5 {[%clk 0:01:15.7]} 16. Ne5 {[%clk 0:01:03.9]} 16... Bf6 {[%clk
0:01:03.4]} 17. Qf5 {[%clk 0:00:53.4]} 17... Rc7 {[%clk 0:00:40.7]} 18. cxd5
{[%clk 0:00:42.9]} 18... g6 {[%clk 0:00:15.9]} 19. Qf4 {[%clk 0:00:42]} 19...
Bg5 {[%clk 0:00:16.3]} 20. Qg4 {[%clk 0:00:27.4]} 20... h5 {[%clk 0:00:16]} 21.
Qd1 {[%clk 0:00:26.6]} 21... cxd4 {[%clk 0:00:12.1]} 22. Bxd4 {[%clk 0:00:25.9]}
22... Nxe5 {[%clk 0:00:09.4]} 23. Bxe5 {[%clk 0:00:25.8]} 23... Rd7 {[%clk
0:00:10.3]} 24. d6 {[%clk 0:00:20.4]} 24... Bxg2 {[%clk 0:00:11.2]} 25. Kxg2
{[%clk 0:00:21.2]} 25... Bf6 {[%clk 0:00:12.1]} 26. Bf4 {[%clk 0:00:19.7]} 26...
Bxa1 {[%clk 0:00:11.1]} 27. Qxa1 {[%clk 0:00:20.2]} 27... Rxd6 {[%clk
0:00:11.6]} 28. Bxd6 {[%clk 0:00:18.9]} 28... Qxd6 {[%clk 0:00:12.5]} 29. Rd1
{[%clk 0:00:19.2]} 29... Qc6+ {[%clk 0:00:13.1]} 30. Kg1 {[%clk 0:00:19.6]}
30... Re8 {[%clk 0:00:13.7]} 31. Qd4 {[%clk 0:00:18.2]} 31... Re4 {[%clk
0:00:12.3]} 32. Qd2 {[%clk 0:00:15.9]} 32... h4 {[%clk 0:00:11]} 33. Rc1 {[%clk
0:00:15.5]} 33... Qe6 {[%clk 0:00:08.3]} 34. Qc3 {[%clk 0:00:07.8]} 34... h3
{[%clk 0:00:06.8]} 35. Qc8+ {[%clk 0:00:07.5]} 35... Kg7 {[%clk 0:00:07.2]} 36.
Qxe6 {[%clk 0:00:07.6]} 36... Rxe6 {[%clk 0:00:08.1]} 37. Kf1 {[%clk 0:00:07.9]}
37... Re7 {[%clk 0:00:08.7]} 38. f3 {[%clk 0:00:08.1]} 38... g5 {[%clk
0:00:08.3]} 39. Kf2 {[%clk 0:00:08.4]} 39... f5 {[%clk 0:00:08.9]} 40. Rc6
{[%clk 0:00:06.8]} 40... Rd7 {[%clk 0:00:08.3]} 41. Ke2 {[%clk 0:00:06.9]} 41...
Re7+ {[%clk 0:00:08.7]} 42. Kd3 {[%clk 0:00:07]} 42... Rd7+ {[%clk 0:00:09.2]}
43. Ke2 {[%clk 0:00:07.3]} 43... Re7+ {[%clk 0:00:09.8]} 44. Kf2 {[%clk
0:00:07.9]} 44... Rd7 {[%clk 0:00:10.3]} 45. Ke2 {[%clk 0:00:07.9]} 1/2-1/2